[Event "Grand Prix Romania 1st Stage 2024"]
[Site "Bucuresti"]
[Date "2024.03.23"]
[Round "3.39"]
[White "Secheres, Adrian-Simion"]
[Black "Tanasie, Cosmin"]
[Result "1-0"]
[ECO "A44"]
[WhiteElo "2371"]
[BlackElo "2009"]
[Annotator "RC"]
[PlyCount "58"]
[EventDate "2024.03.20"]
[EventType "swiss"]
[EventCountry "ROU"]
[SourceTitle "playchess.com"]
[Source "ChessBase"]
[SourceQuality "1"]
[TimeControl "900+5"]

1. d4 {[%emt 0:00:03]} c5 {[%emt 0:00:01]} 2. d5 {[%emt 0:00:03]} e5 {[%emt 0:00:01]} 3. e4 {[%emt 0:00:05]} d6 {[%emt 0:00:02]} 4. Bb5+ {[%emt 0:00:09]} Nd7 {[%emt 0:00:01]} 5. a4 {[%emt 0:00:09]} Be7 {[%emt 0:00:01]} 6. Nf3 {[%emt 0:00:13]} Ngf6 {[%emt 0:00:02]} 7. Nc3 {[%emt 0:00:05]} O-O {[%emt 0:00:03]} 8. O-O {[%emt 0:00:09]} Ne8 {[%emt 0:00:05]} 9. Bd3 {[%emt 0:00:13]} g6 {[%emt 0:00:05]} 10. Ra3 {[%emt 0:00:53]} Ng7 {[%emt 0:00:22]} 11. Nd2 {[%emt 0:00:35]} Bg5 {[%emt 0:01:49]} 12. g3 {[%emt 0:01:18]} f5 {[%emt 0:00:24]} 13. f4 {[%emt 0:00:43]} exf4 {[%emt 0:01:52]} 14. Nf3 {[%emt 0:00:03]} Ne5 {[%emt 0:00:57]} 15. Nxg5 {[%emt 0:01:19]} Qxg5 {[%emt 0:00:02]} 16. Bxf4 {[%emt 0:01:21]} Qe7 {[%emt 0:00:01]} 17. Bh6 {[%emt 0:00:59]} Ng4 {[%emt 0:01:43]} 18. Bd2 {[%emt 0:00:21]} Qe5 {[%emt 0:02:32]} 19. Nb5 {[%emt 0:00:02]} Nh5 {[%emt 0:03:08]} 20. Be2 {[%emt 0:01:44]} a6 {[%emt 0:00:44]} 21. Bxg4 {[%emt 0:00:09]} fxg4 {[%emt 0:00:25]} 22. Rxf8+ {[%emt 0:00:33]} Kxf8 {[%emt 0:00:01]} 23. Qf1+ {[%emt 0:02:18]} Kg8 {[%emt 0:00:03]} 24. Nc7 {[%emt 0:00:02]} Rb8 {[%emt 0:00:06]} 25. Rb3 {[%emt 0:00:43]} Bd7 {[%emt 0:00:50]} 26. Qc4 {[%emt 0:00:37]} b5 {[%emt 0:00:27]} 27. Qe2 {[%emt 0:00:17]} Nf6 {[%emt 0:00:43]} 28. Bf4 {[%emt 0:00:30]} Qd4+ {[%emt 0:00:27]} 29. Kg2 {[%emt 0:00:12]} Nxe4 {[%emt 0:00:00]} 1-0

[Event "Grand Prix Romania 1st Stage 2024"]
[Site "Bucuresti"]
[Date "2024.03.23"]
[Round "4.1"]
[White "Istratescu, Andrei"]
[Black "Motylev, Alexander"]
[Result "1/2-1/2"]
[ECO "E49"]
[WhiteElo "2374"]
[BlackElo "2611"]
[Annotator "TA"]
[PlyCount "46"]
[EventDate "2024.03.20"]
[EventType "swiss"]
[EventCountry "ROU"]
[SourceTitle "playchess.com"]
[Source "ChessBase"]
[SourceQuality "1"]
[TimeControl "900+5"]

{[%evp 26,46,0,0,0,24,0,0,30,0,74,75,78,82,182,177,203,20,17,0,0,0,26]} 1. d4 {[%emt 0:00:04]} d5 {[%emt 0:00:01]} 2. c4 {[%emt 0:00:02]} e6 {[%emt 0:00:02]} 3. Nc3 {[%emt 0:00:04]} Bb4 {[%emt 0:00:12]} 4. e3 {[%emt 0:01:28]} Nf6 {[%emt 0:00:05]} 5. a3 {[%emt 0:00:16]} Bxc3+ {[%emt 0:00:17]} 6. bxc3 {[%emt 0:00:00]} O-O {[%emt 0:00:38]} 7. cxd5 {[%emt 0:00:06]} exd5 {[%emt 0:00:03]} 8. Bd3 {[%emt 0:00:01]} c5 {[%emt 0:00:14]} 9. Ne2 {[%emt 0:00:11][%cal Bg1e2,Be2g3,Bg3f5][%mdl 32]} b6 {[%emt 0:00:24]} 10. O-O {[%emt 0:00:35]} Re8 {[%emt 0:00:32]} 11. f3 {[%emt 0:00:32]} Ba6 {[%emt 0:00:20]} 12. Ng3 {[%emt 0:00:17]} Bxd3 13. Qxd3 {[%emt 0:00:01]} Nc6 {[%emt 0:00:16]} 14. Bb2 {[%emt 0:00:06]} h5 {[%emt 0:00:38][%cal Bh7h5,Bh5h4,Bh4h3][%mdl 32]} 15. Rae1 {[%emt 0:00:06]} h4 {[%emt 0:00:59]} 16. Nf5 {[%emt 0:01:23]} h3 {[%emt 0:00:02]} 17. g4 {[%emt 0:00:58]} ({Much weaker is} 17. gxh3 Ne7 $11) 17... Qd7 {[%emt 0:01:19]} (17... g6 $11 {keeps the balance.} 18. Ng3 cxd4 19. cxd4 Qd7) 18. e4 $16 {[%emt 0:01:13] aiming for e5.} g6 {[%emt 0:02:33][%cal Bg7g6,Bg6f5][%mdl 32]} 19. Qd2 {[%emt 0:01:20] Qh6 would now be deadly.} cxd4 {[%emt 0:03:42] [#]} (19... dxe4 $16 20. Qh6 gxf5 21. Qg5+ Kh7) 20. Qh6 $1 $18 {[%emt 0:02:17][%csl Gf5][%cal Rh6g7]} gxf5 {[%emt 0:00:02]} 21. Qg5+ $2 {[%emt 0:00:41]} ({White must play} 21. gxf5 $18 {Strongly threatening Kh1.} Nh7 22. f6 Nxf6 23. Kh1) 21... Kh7 $1 $11 {[%emt 0:00:51] The position is equal.} 22. Qh4+ {[%emt 0:00:02][%mdl 1024] White has compensation.} Kg8 {[%emt 0:00:05] And now ...Nh7 would win.} 23. Qg5+ {[%emt 0:00:01]} Kh7 $1 {[%emt 0:00:21] Weighted Error Value: White=0.22 (precise) /Black=0.22 (precise) .  Missed win:     	White=1     	---        Mistake:       	---       	Black=2      Inaccurate:     	White=1     	---        OK:         	White=3     	Black=2      Best:        	White=1     	Black=1      Strong:       	---       	Black=2} 1/2-1/2

[Event "Grand Prix Romania 1st Stage 2024"]
[Site "Bucuresti"]
[Date "2024.03.23"]
[Round "4.2"]
[White "Ponomariov, Ruslan"]
[Black "Stoyanov, Tsvetan"]
[Result "1-0"]
[ECO "D20"]
[WhiteElo "2646"]
[BlackElo "2465"]
[Annotator "TA"]
[PlyCount "62"]
[EventDate "2024.03.20"]
[EventType "swiss"]
[EventCountry "ROU"]
[SourceTitle "playchess.com"]
[Source "ChessBase"]
[SourceQuality "1"]
[TimeControl "900+5"]

{[%evp 9,62,1,12,0,18,13,31,-6,-7,0,41,12,46,20,110,102,110,102,144,145,151,164,153,118,112,131,132,120,156,76,149,70,66,77,135,168,161,147,228,213,291,290,514,564,700,496,828,647,29984,2152,1768,1604,29986,2171,1661]} 1. d4 {[%emt 0:00:02]} d5 {[%emt 0:00:03]} 2. c4 {[%emt 0:00:02]} dxc4 {[%emt 0:00:05]} 3. e3 {[%emt 0:01:21]} Nf6 {[%emt 0:00:03]} 4. Bxc4 {[%emt 0:00:02]} e6 {[%emt 0:00:01]} 5. Nc3 {[%emt 0:00:36]} a6 {[%emt 0:00:23]} 6. Qf3 {[%emt 0:00:28]} Bd6 {[%emt 0:01:53]} 7. Nge2 {[%emt 0:00:08]} Nc6 {[%emt 0:00:30]} 8. g4 {[%emt 0:01:19][%cal Bg2g4,Bg4g5][%mdl 32] White is slightly better.} h6 {[%emt 0:00:28]} 9. h4 {[%emt 0:00:06]} Nb4 {[%emt 0:03:49] Strongly threatening ...Nc2+.} 10. Kf1 {[%emt 0:00:49]} Bd7 {[%emt 0:04:25]} 11. g5 {[%emt 0:01:01]} Nfd5 {[%emt 0:00:33]} 12. e4 $16 {[%emt 0:00:06]} Nb6 {[%emt 0:00:07]} 13. Bb3 {[%emt 0:00:05]} c5 {[%emt 0:00:28]} 14. gxh6 {[%emt 0:01:35]} gxh6 {[%emt 0:00:00]} 15. dxc5 {[%emt 0:00:21]} Bxc5 {[%emt 0:00:01]} 16. Be3 $40 {[%emt 0:00:03][%mdl 128] White wants a kill.} Bxe3 {[%emt 0:01:09]} 17. Qxe3 {[%emt 0:00:02]} Nc6 {[%emt 0:00:01] Wards off Qd4} 18. Rd1 {[%emt 0:00:31][%cal Oc3d5]} Na5 {[%emt 0:01:31]} 19. e5 {[%emt 0:03:42] White has more active pieces. The black rooks are passive.} (19. Qf4 $142 $1 {[%cal Rf4e5] Qe5 is the strong threat.} Rg8 20. Qxh6) 19... Nxb3 {[%emt 0:00:43]} (19... Qc7 $142) 20. axb3 {[%emt 0:00:01]} (20. Ne4 $1 $16 Qc7 (20... Nc4 $2 21. Qxb3 Nxe5 22. Qc3 $18) 21. Nf6+ (21. axb3 O-O-O $11) 21... Kd8 22. axb3 (22. Qxb3 Nd5 $16)) 20... Qc7 {[%emt 0:00:03] Black is weak on the dark squares} 21. Ne4 {[%emt 0:01:42]} Nd5 {[%emt 0:00:11] [#]} (21... O-O-O $142) 22. Rxd5 $1 {[%emt 0:00:39][%mdl 512]} exd5 {[%emt 0:00:01]} 23. Nd6+ {[%emt 0:00:01]} Kf8 {[%emt 0:00:01] [#]} (23... Ke7 $16 {was necessary.}) 24. Nd4 $1 $18 {[%emt 0:00:29][%mdl 1024] White has strong compensation.} Bb5+ {[%emt 0:00:07]} 25. Kg2 {[%emt 0:00:23]} (25. N6xb5 axb5 26. Ke2 Re8 $15) 25... Qe7 $2 {[%emt 0:00:20]} (25... Rd8 26. Rc1 (26. N6xb5 axb5 27. Kh2 Rh7 $11) 26... Bc6) 26. Qf4 {[%emt 0:00:09]} Bd7 {[%emt 0:00:07]} 27. Kf3 {[%emt 0:00:13]} (27. Nxb7 $2 Rg8+ 28. Kf3 Bg4+ 29. Ke3 Qxb7 $19) 27... Be6 {[%emt 0:00:10]} (27... h5 $142 28. N4f5 (28. Nxb7 $2 Bg4+ 29. Ke3 Qxb7 $19) 28... Bxf5 29. Nxf5 Qd7) 28. Rc1 {[%emt 0:00:11] Black must now prevent N6f5.} Rd8 {[%emt 0:00:05] [#]} 29. Rc7 $3 {[%emt 0:00:10][%mdl 512] Wards off Qd7} Bd7 {[%emt 0:00:04]} 30. Rxb7 {[%emt 0:00:11][%cal Oe5e6] Hoping for e6!} h5 {[%emt 0:00:07]} 31. Nc6 {[%emt 0:00:18] A dynamic duo of knights.} (31. e6 $142 Rh7 32. N6f5 (32. Rxd7 Rxd7 33. N6f5 Qxe6 $18) (32. exd7 f6 $18) 32... Bxe6 33. Rxe7 (33. Nxe7 Bg4+ 34. Ke3 Re8 35. Kd2 Rxe7 36. Qd6 Bd7 37. Rxd7 f6) 33... Bxf5 34. Nxf5 Kg8 35. Nh6+ Kh8 36. Qf6+ (36. Rxf7 Rxf7 37. Nxf7+ Kg7 38. Nxd8 Kh7 39. Qf7+ Kh6 40. Ne6 a5 41. Qg7#) 36... Rg7 37. Nxf7+ (37. Rxf7 Rdg8 38. Nxg8 Kxg8 39. Qxg7#) 37... Kh7 38. Qh6+ Kg8 39. Qh8#) 31... Bg4+ {[%emt 0:00:11] Weighted Error Value: White=0.45/Black=1.00.  Mistake:       	White=2     	Black=6      Inaccurate:     	White=3     	Black=5      OK:         	White=8     	Black=1      Best:        	White=1     	---        Strong:       	White=1     	---        Brilliant:      	White=1     	---} 1-0

[Event "Grand Prix Romania 1st Stage 2024"]
[Site "Bucuresti"]
[Date "2024.03.23"]
[Round "4.3"]
[White "Tilicheev, Viacheslav"]
[Black "Sarana, Alexey"]
[Result "0-1"]
[ECO "E01"]
[WhiteElo "2485"]
[BlackElo "2699"]
[Annotator "TA"]
[PlyCount "57"]
[EventDate "2024.03.20"]
[EventType "swiss"]
[EventCountry "ROU"]
[SourceTitle "playchess.com"]
[Source "ChessBase"]
[SourceQuality "1"]
[TimeControl "900+5"]

{[%evp 9,57,0,0,0,0,0,0,-32,-2,-30,-29,-20,-28,-16,0,-7,-14,0,0,0,-22,-56,-44,-57,-49,-68,-45,-102,-70,-87,-60,-190,-195,-316,-205,-257,-254,-362,-332,-346,-329,-358,-301,-551,-531,-714,-721,-691,-716,-653]} 1. d4 {[%emt 0:00:04]} Nf6 {[%emt 0:00:01]} 2. c4 {[%emt 0:00:01]} e6 {[%emt 0:00:01]} 3. g3 {[%emt 0:00:02]} d5 {[%emt 0:00:03]} 4. Nf3 {[%emt 0:00:04]} Bb4+ {[%emt 0:00:02]} 5. Nbd2 {[%emt 0:00:25]} dxc4 {[%emt 0:00:09]} 6. a3 {[%emt 0:00:06]} Bxd2+ {[%emt 0:00:33]} 7. Bxd2 {[%emt 0:00:03]} Bd7 {[%emt 0:00:07][%cal Bc8d7,Bd7b5,Bb5a6][%mdl 32]} 8. Qc1 {[%emt 0:01:23] Die Stellung ist ausgeglichen.} Bb5 {[%emt 0:02:01]} 9. a4 {[%emt 0:00:07]} Ba6 {[%emt 0:00:03]} 10. e3 {[%emt 0:00:39]} Qd5 {[%emt 0:00:56]} 11. Bg2 {[%emt 0:00:05]} Nc6 {[%emt 0:00:21]} 12. O-O {[%emt 0:02:10][%cal Of3e5] [#]} c3 $1 $36 {[%emt 0:00:32][%mdl 2048] Schwarz drückt.} 13. bxc3 {[%emt 0:00:01]} Bxf1 {[%emt 0:00:02]} 14. Qxf1 {[%emt 0:00:02][%cal Of3e5]} Qd7 {[%emt 0:02:43]} 15. Rb1 {[%emt 0:00:45]} Rb8 $1 {[%emt 0:01:15]} 16. c4 {[%emt 0:00:40]} O-O {[%emt 0:00:05]} 17. Bc3 {[%emt 0:00:02]} Rfd8 {[%emt 0:00:33]} 18. Rb3 {[%emt 0:02:55]} ({Vorzuziehen ist} 18. Ne1 $15) 18... b6 {[%emt 0:00:56]} 19. Qb1 {[%emt 0:00:27]} Qe8 {[%emt 0:00:13]} 20. e4 {[%emt 0:04:56] Der Zug kostet die Partie für Weiß.} (20. Rb5 $15) 20... Na5 $19 {[%emt 0:00:15]} 21. e5 {[%emt 0:00:51]} (21. Rb4 {ist eine bessere Verteidigung.}) 21... Nd7 {[%emt 0:00:17]} (21... Qxa4 $2 {verliert.} 22. Bxa5 Nd7 23. Bd2 Qxc4 24. Bf1 $18) 22. Bxa5 {[%emt 0:00:58]} bxa5 {[%emt 0:00:01]} 23. h4 {[%emt 0:00:06]} (23. Rb7 {war einen Versuch wert.}) 23... Rxb3 {[%emt 0:00:13]} 24. Qxb3 {[%emt 0:00:01]} Rb8 {[%emt 0:00:01]} 25. Qc2 {[%emt 0:00:01]} Rb4 {[%emt 0:00:09] Weiss muss nun ...Nf8 beachten.} 26. Ng5 $2 {[%emt 0:00:09] [#]} (26. Ne1 {war nötig.} Nb6 27. Bf1) 26... Nf8 {[%emt 0:00:02] Schwarz steht klar auf Gewinn.} 27. Be4 {[%emt 0:00:02]} h6 {[%emt 0:00:06]} (27... Qxa4 $2 {zu gefräßig.} 28. Bxh7+ Nxh7 29. Qxh7+ Kf8 30. Qh8+ Ke7 31. Qxg7 $18) 28. Nf3 {[%emt 0:00:14]} Qxa4 {[%emt 0:00:04]} 29. Qe2 {[%emt 0:00:01] Gewichteter Fehlerwert: Weiß=0.56/Schwarz=0.09 (makellos) .  Fehler:       	Weiß=5     	---        Ungenau:       	Weiß=4     	Schwarz=3     OK:         	Weiß=4     	Schwarz=11    Bester:       	Weiß=1     	Schwarz=2     Stark:        	---       	Schwarz=1} 0-1

[Event "Grand Prix Romania 1st Stage 2024"]
[Site "Bucuresti"]
[Date "2024.03.23"]
[Round "4.4"]
[White "Deac, Bogdan-Daniel"]
[Black "Nevednichy, Vladislav"]
[Result "1-0"]
[ECO "B07"]
[WhiteElo "2690"]
[BlackElo "2445"]
[Annotator "TA"]
[PlyCount "129"]
[EventDate "2024.03.20"]
[EventType "swiss"]
[EventCountry "ROU"]
[SourceTitle "playchess.com"]
[Source "ChessBase"]
[SourceQuality "1"]
[TimeControl "900+5"]

{[%evp 9,129,44,55,54,52,51,59,50,58,41,59,47,54,47,45,35,49,43,81,85,94,91,85,70,111,123,160,140,151,159,160,149,192,189,191,150,165,139,223,219,254,210,202,209,196,211,225,213,260,264,289,258,241,166,162,126,179,185,181,176,168,92,86,97,109,98,113,46,80,6,59,67,175,102,144,159,166,113,111,104,112,112,178,179,204,189,429,580,605,605,613,602,724,690,757,679,610,521,10297,6103,6446,5089,12768,9963,29974,29975,29976,29973,29981,29981,29985,29986,29986,29987,29988,29989,29990,29991,29992,29993,29993,29991]} 1. d4 {[%emt 0:00:02]} d6 {[%emt 0:00:05]} 2. e4 {[%emt 0:01:34]} Nf6 {[%emt 0:00:02]} 3. Bd3 {[%emt 0:00:02]} e5 {[%emt 0:00:03]} 4. c3 {[%emt 0:00:08]} Nc6 {[%emt 0:00:03]} 5. d5 {[%emt 0:01:16]} Nb8 {[%emt 0:00:27][%cal Bc6b8,Bb8a6,Ba6c5][%mdl 32]} 6. c4 {[%emt 0:00:15]} a5 {[%emt 0:00:12]} 7. Nc3 {[%emt 0:00:54]} g6 {[%emt 0:00:22]} 8. h3 {[%emt 0:00:15] White is slightly better.} Na6 {[%emt 0:00:23]} 9. Bg5 {[%emt 0:00:23]} Be7 {[%emt 0:00:25][%cal Of6e4]} 10. Bh6 {[%emt 0:00:09]} Bf8 {[%emt 0:00:13]} 11. Be3 {[%emt 0:01:22]} Bg7 {[%emt 0:00:42]} 12. Nge2 {[%emt 0:01:38]} Nc5 {[%emt 0:00:15]} 13. Bc2 {[%emt 0:00:18]} Bd7 {[%emt 0:00:22]} 14. Qd2 {[%emt 0:02:15]} h5 {[%emt 0:00:38]} 15. b3 {[%emt 0:00:30]} h4 {[%emt 0:00:55]} 16. a3 {[%emt 0:01:18]} O-O {[%emt 0:04:43]} 17. Bg5 {[%emt 0:01:05]} Qb8 {[%emt 0:00:06]} 18. Bxh4 {[%emt 0:00:47]} b5 {[%emt 0:00:02]} 19. cxb5 {[%emt 0:00:09]} Bxb5 {[%emt 0:00:10]} 20. Rb1 {[%emt 0:00:08] aiming for Bxf6.} Bxe2 {[%emt 0:00:52]} 21. Qxe2 {[%emt 0:01:21]} (21. Kxe2 Qc8 22. Bg5 Ncd7) 21... Nh5 {[%emt 0:00:02]} 22. O-O {[%emt 0:00:20]} Nf4 {[%emt 0:00:06]} 23. Qc4 {[%emt 0:00:06]} f5 {[%emt 0:02:21]} (23... Qc8 $16 {keeps fighting.} 24. Kh2 Rb8) 24. Bg5 $18 {[%emt 0:00:10]} Rf7 {[%emt 0:01:24]} 25. b4 {[%emt 0:00:29]} axb4 {[%emt 0:02:17]} 26. axb4 {[%emt 0:00:03]} Nd7 {[%emt 0:00:00]} 27. Ra1 {[%emt 0:00:02]} Nb6 {[%emt 0:00:00]} 28. Qc6 {[%emt 0:00:10]} Rxa1 {[%emt 0:00:00]} 29. Rxa1 {[%emt 0:00:01]} Kh7 {[%emt 0:00:00]} 30. exf5 {[%emt 0:00:13]} gxf5 {[%emt 0:00:00]} 31. Bxf4 {[%emt 0:00:06]} exf4 {[%emt 0:00:00] Black is weak on the light squares} 32. Re1 {[%emt 0:00:07] Strongly threatening Re8.} Qa8 {[%emt 0:00:00]} (32... Be5 $16 33. Nb1 Kg7) 33. Qxa8 Nxa8 {[%emt 0:00:00]} 34. Ne2 {[%emt 0:00:11]} Be5 {[%emt 0:00:00]} 35. Kf1 {[%emt 0:00:06]} (35. g4 $18 fxg3 36. f4 (36. fxg3 Kh6 $16) (36. Nxg3 Bxg3 37. fxg3 Nb6 $18)) 35... Nb6 $16 {[%emt 0:00:00][%cal Of7f8]} 36. Bb3 {[%emt 0:00:03]} Rf8 {[%emt 0:00:00]} 37. Rc1 {[%emt 0:00:01]} Na8 {[%emt 0:00:00]} 38. Bc2 {[%emt 0:00:08] White is more active.} ({Better is} 38. Rc4 $16 Kh6 39. g3 (39. Nxf4 Nb6 $11)) 38... Kg6 {[%emt 0:00:00]} 39. Bd3 {[%emt 0:00:02]} (39. Ba4 $16) 39... Rb8 {[%emt 0:00:00]} (39... Nb6 $11) 40. b5 $1 $14 {[%emt 0:00:06]} Kg5 {[%emt 0:00:06]} (40... Nb6 $14) 41. Ng1 {[%emt 0:00:06]} ({White should try} 41. g3 $1 $18 {[%cal Rg3f4]} Kf6 42. Rc2 (42. Nxf4 Bxf4 43. gxf4 Nb6 $16) (42. gxf4 Bb2 $18) 42... fxg3 43. f4 (43. fxg3 Rc8 $11) (43. Nxg3 Nb6 $14)) 41... Rb7 {[%emt 0:00:07]} 42. Nf3+ {[%emt 0:00:06]} Kf6 {[%emt 0:00:00]} 43. Nh4 {[%emt 0:00:06]} (43. Nxe5 $18 dxe5 44. Rc6+ Kg5 45. f3) 43... Nb6 $16 {[%emt 0:00:05]} 44. Nxf5 {[%emt 0:00:05]} (44. Bxf5 Kg5 45. Rb1 (45. g3 $2 fxg3 46. fxg3 Bxg3 $19) 45... Kxh4 $19) 44... Nxd5 {[%emt 0:00:04] [#]} 45. Nh6 $1 {[%emt 0:00:03]} Ra7 {[%emt 0:00:17]} (45... Bb2 $16 {was called for.} 46. Rb1 Bd4) 46. Ng4+ $18 {[%emt 0:00:16]} Ke7 {[%emt 0:00:27] [#]} 47. Re1 $1 {[%emt 0:00:00]} Ra1 $2 {[%emt 0:00:15]} (47... Ra3 {might work better.}) 48. Nxe5 {[%emt 0:00:01]} Rxe1+ {[%emt 0:00:02]} 49. Kxe1 {[%emt 0:00:03]} dxe5 {[%emt 0:00:00][%mdl 4096] Endgame. KB-KN} 50. Ke2 {[%emt 0:00:06]} Nf6 {[%emt 0:00:16]} 51. Kf3 {[%emt 0:00:05]} Kd6 {[%emt 0:00:03]} 52. g4 {[%emt 0:00:07]} fxg3 {[%emt 0:00:03]} 53. fxg3 {[%emt 0:00:02][%cal Bf2g3,Bg3g4,Bg4g5][%mdl 32]} c6 {[%emt 0:00:21]} 54. bxc6 {[%emt 0:00:07]} Kxc6 55. g4 {[%emt 0:00:04]} Kd6 {[%emt 0:00:02]} 56. g5 {[%emt 0:00:04]} Nd5 {[%emt 0:00:02]} 57. h4 {[%emt 0:00:06][%cal Bh3h4,Bh4h5,Bh5h6][%mdl 32] White mates.} Ke7 {[%emt 0:00:04]} 58. Be4 {[%emt 0:00:06]} Nf4 {[%emt 0:00:08]} 59. Kg4 {[%emt 0:00:02]} Ke6 {[%emt 0:00:01]} 60. h5 {[%emt 0:00:10]} Kf7 {[%emt 0:00:07]} 61. h6 {[%emt 0:00:04]} Kf8 {[%emt 0:00:17]} 62. Kf5 {[%emt 0:00:05]} Nh3 {[%emt 0:00:07]} 63. g6 {[%emt 0:00:01]} ({Stronger than} 63. Kxe5 Nxg5 64. h7 (64. Kf6 Nxe4+ 65. Kg6 Ng5 $11) 64... Kg7 $11) 63... Nf4 {[%emt 0:00:02]} 64. g7+ {[%emt 0:00:02]} Kf7 {[%emt 0:00:01]} 65. Bc2 {[%emt 0:00:05] Weighted Error Value: White=0.15 (very precise) /Black=0.35.  Mistake:       	White=5     	Black=6      Inaccurate:     	White=1     	Black=5      OK:         	White=17    	Black=10     Best:        	White=2     	Black=3      Strong:       	White=2     	---} 1-0

[Event "Grand Prix Romania 1st Stage 2024"]
[Site "Bucuresti"]
[Date "2024.03.23"]
[Round "4.5"]
[White "Stepanencu, Nicodim-Cosmin"]
[Black "Safarli, Eltaj"]
[Result "0-1"]
[ECO "E48"]
[WhiteElo "2278"]
[BlackElo "2614"]
[Annotator "RC"]
[PlyCount "48"]
[EventDate "2024.03.20"]
[EventType "swiss"]
[EventCountry "ROU"]
[SourceTitle "playchess.com"]
[Source "ChessBase"]
[SourceQuality "1"]
[TimeControl "900+5"]

1. d4 {[%emt 0:00:02]} Nf6 {[%emt 0:00:03]} 2. c4 {[%emt 0:00:02]} e6 {[%emt 0:00:05]} 3. Nc3 {[%emt 0:00:02]} Bb4 {[%emt 0:00:01]} 4. e3 {[%emt 0:00:02]} O-O {[%emt 0:00:06]} 5. Bd3 {[%emt 0:00:04]} Re8 {[%emt 0:00:15]} 6. Nge2 {[%emt 0:00:12]} d5 {[%emt 0:00:06]} 7. O-O {[%emt 0:00:10]} Nbd7 {[%emt 0:00:02]} 8. a3 {[%emt 0:00:08]} Bf8 {[%emt 0:00:02]} 9. e4 {[%emt 0:00:23]} dxe4 {[%emt 0:00:37]} 10. Nxe4 {[%emt 0:00:01]} b6 {[%emt 0:00:28]} 11. N2c3 {[%emt 0:00:10]} Bb7 {[%emt 0:00:07]} 12. Qf3 {[%emt 0:01:15]} Rb8 {[%emt 0:00:23]} 13. Rd1 {[%emt 0:03:00]} Qc8 {[%emt 0:03:27]} 14. Bf4 {[%emt 0:00:27]} Nxe4 {[%emt 0:00:14]} 15. Bxe4 {[%emt 0:00:03]} Bxe4 {[%emt 0:00:30]} 16. Qxe4 {[%emt 0:03:16]} Bd6 {[%emt 0:00:47]} 17. Bxd6 {[%emt 0:00:47]} cxd6 {[%emt 0:00:01]} 18. Nb5 {[%emt 0:00:01]} Nf6 {[%emt 0:00:14]} 19. Qf4 {[%emt 0:00:01]} Rd8 {[%emt 0:00:25]} 20. Nxd6 {[%emt 0:01:57]} Qc6 {[%emt 0:01:16]} 21. Nb5 {[%emt 0:02:23]} Qxc4 {[%emt 0:00:03]} 22. Nxa7 {[%emt 0:00:20]} Qa4 {[%emt 0:00:29]} 23. Qc7 {[%emt 0:00:11]} Nd5 {[%emt 0:00:22]} 24. b3 {[%emt 0:00:19]} Qa6 {[%emt 0:00:10]} 0-1